fUSD/lending_fUSD_20241106
["ID","MTS","AMOUNT","RATE_DAILY","PERIOD"]
[341495521,1730922676540,-824.163633,0.00030684,7]
[341495522,1730922676550,-151.0,0.00030684,7]
[341495523,1730922676559,-689.48778567,0.00030684,2]
[341495524,1730922676569,-11296.61990667,0.00030752,15]
[341495525,1730922676579,-250.0,0.000308,30]
[341495526,1730922676589,-709.48465,0.000308,2]
[341495527,1730922676599,-614.12190921,0.00030858,2]
[341495528,1730922676609,-345.46825,0.00030888,2]
[341495529,1730922676619,-4100.0,0.000309,11]
[341495530,1730922676628,-500.0,0.00030958,2]
[341495531,1730922676637,-747.29,0.00030958,2]
[341495532,1730922676647,-500.0,0.00030958,2]
[341495533,1730922676658,-500.0,0.00030958,2]
[341495534,1730922676670,-524.69,0.00030958,2]
[341495535,1730922676680,-500.0,0.00030958,2]
[341495536,1730922676689,-500.0,0.00030958,2]
[341495537,1730922676699,-500.0,0.00030958,2]
[341495538,1730922676709,-1051.01,0.00030958,2]
[341495539,1730922676719,-500.0,0.00030958,2]
[341495540,1730922676734,-851.78,0.00030958,2]
[341495541,1730922676744,-500.0,0.00030958,2]
[341495542,1730922676754,-500.0,0.00030958,2]
[341495543,1730922676763,-500.0,0.00030958,2]
[341495544,1730922676773,-572.0,0.00030958,2]
[341495545,1730922676783,-500.0,0.00030958,2]
[341495546,1730922676792,-500.0,0.00030958,2]
[341495547,1730922676802,-500.0,0.00030958,2]
[341495548,1730922676811,-659.87,0.00030958,2]
[341495549,1730922676820,-1047.2,0.00030958,2]
[341495550,1730922676830,-500.0,0.00030958,2]
[341495551,1730922676839,-500.0,0.00030958,2]
[341495552,1730922676849,-933.13,0.00030958,2]
[341495553,1730922676859,-502.97,0.00030958,2]
[341495554,1730922676868,-500.0,0.00030958,2]
[341495555,1730922676879,-500.0,0.00030958,2]
[341495556,1730922676889,-500.0,0.00030958,2]
[341495557,1730922676899,-663.55,0.00030958,2]
[341495558,1730922676909,-500.0,0.00030958,2]
[341495559,1730922676918,-500.0,0.00030958,2]
[341495560,1730922676927,-718.46,0.00030958,2]
[341495561,1730922676937,-500.0,0.00030958,2]
[341495562,1730922676946,-549.51,0.00030958,2]
[341495563,1730922676956,-151.0,0.00030958,7]
[341495564,1730922676965,-500.0,0.00030958,2]
[341495565,1730922676977,-151.0,0.00030958,7]
[341495566,1730922676986,-500.0,0.00030958,2]
[341495567,1730922676996,-620.75,0.00030958,2]
[341495568,1730922677005,-500.0,0.00030958,2]
[341495569,1730922677015,-721.78,0.00030958,2]
[341495570,1730922677024,-500.0,0.00030958,2]
[341495571,1730922677034,-578.58,0.00030958,2]
[341495572,1730922677044,-1169.27,0.00030958,2]
[341495573,1730922677056,-500.0,0.00030958,2]
[341495574,1730922677066,-626.9,0.00030958,2]
[341495575,1730922677075,-500.0,0.00030958,2]
[341495576,1730922677086,-528.97,0.00030958,2]
[341495577,1730922677096,-151.0,0.00030958,7]
[341495578,1730922677106,-500.0,0.00030958,2]
[341495579,1730922677115,-588.31,0.00030958,2]
[341495580,1730922677124,-500.0,0.00030958,2]
[341495581,1730922677134,-992.82,0.00030958,2]
[341495582,1730922677143,-500.0,0.00030958,2]
[341495583,1730922677152,-500.0,0.00030958,2]
[341495584,1730922677162,-949.12,0.00030958,2]
[341495585,1730922677172,-824.345403,0.00030958,7]
[341495586,1730922677181,-154.53044794,0.00030958,2]
[341495587,1730922677191,-824.345403,0.00030958,7]
[341495588,1730922677200,-628.45,0.00030958,2]
[341495589,1730922677209,-892.79,0.00030958,2]
[341495590,1730922677219,-574.4,0.00030958,2]
[341495591,1730922677233,-316.96913999,0.00030958,2]
[341495592,1730922677242,-500.0,0.00030958,2]
[341495593,1730922677251,-641.4,0.00030958,2]
[341495594,1730922677261,-1259.56,0.00030958,2]
[341495595,1730922677270,-500.0,0.00030958,2]
[341495596,1730922677279,-500.0,0.00030958,2]
[341495597,1730922677289,-941.09,0.00030958,2]
[341495598,1730922677298,-859.1,0.00030958,2]
[341495599,1730922677308,-500.0,0.00030958,2]
[341495600,1730922677319,-1523.21,0.00030958,2]
[341495601,1730922677331,-616.69,0.00030958,2]
[341495602,1730922677341,-536.1,0.00030958,2]
[341495603,1730922677352,-530.09,0.00030958,2]
[341495604,1730922677362,-1724.32,0.00030958,2]
[341495605,1730922677372,-791.56,0.00030958,2]
[341495606,1730922677384,-1306.48,0.00030958,2]
[341495607,1730922677396,-500.0,0.00030958,2]
[341495608,1730922677405,-989.59,0.00030958,2]
[341495609,1730922677415,-508.25,0.00030958,2]
[341495610,1730922677424,-500.0,0.00030958,2]
[341495611,1730922677435,-2159.33,0.00030958,2]
[341495612,1730922677445,-1683.35,0.00030958,2]
[341495613,1730922677455,-536.59,0.00030958,2]
[341495614,1730922677465,-1052.72,0.00030958,2]
[341495615,1730922677478,-500.0,0.00030958,2]
[341495616,1730922677487,-500.0,0.00030958,2]
[341495617,1730922677497,-500.0,0.00030958,2]
[341495618,1730922677507,-1358.49,0.00030958,2]
[341495619,1730922677518,-500.0,0.00030958,2]
[341495620,1730922677528,-500.0,0.00030958,2]
[341495621,1730922677540,-1719.08,0.00030958,2]
[341495622,1730922677549,-500.0,0.00030958,2]
[341495623,1730922677558,-500.0,0.00030958,2]
[341495624,1730922677569,-1081.12,0.00030958,2]
[341495625,1730922677579,-554.88,0.00030958,2]
[341495626,1730922677588,-608.63,0.00030958,2]
[341495627,1730922677598,-500.0,0.00030958,2]
[341495628,1730922677607,-655.47,0.00030958,2]
[341495629,1730922677618,-576.36,0.00030958,2]
[341495630,1730922677627,-641.95,0.00030958,2]
[341495631,1730922677637,-2127.75,0.00030958,2]
[341495632,1730922677646,-978.4,0.00030958,2]
[341495633,1730922677656,-565.93,0.00030958,2]
[341495634,1730922677665,-1670.33,0.00030958,2]
[341495635,1730922677675,-665.68,0.00030958,2]
[341495636,1730922677684,-500.0,0.00030958,2]
[341495637,1730922677694,-1219.79,0.00030958,2]
[341495638,1730922677704,-1209.34,0.00030958,2]
[341495639,1730922677714,-1277.02,0.00030958,2]
[341495640,1730922677724,-500.0,0.00030958,2]
[341495641,1730922677734,-538.64,0.00030958,2]
[341495642,1730922677743,-500.0,0.00030958,2]
[341495643,1730922677753,-1000.12,0.00030958,2]
[341495644,1730922677762,-500.0,0.00030958,2]
[341495645,1730922677771,-802.32,0.00030958,2]
[341495646,1730922677781,-1976.19,0.00030958,2]
[341495647,1730922677790,-585.057479,0.00030958,2]
[341495648,1730922677799,-569.46,0.00030958,2]
[341495649,1730922677810,-894.15,0.00030958,2]
[341495650,1730922677820,-500.0,0.00030958,2]
[341495651,1730922677831,-178.825587,0.00030958,7]
[341495652,1730922677841,-178.825584,0.00030958,7]
[341495653,1730922677851,-151.0,0.00030958,7]
[341495654,1730922677862,-641.332644,0.00030958,7]
[341495655,1730922677871,-641.332644,0.00030958,7]
[341495656,1730922677882,-256.342232,0.00030958,7]
[341495657,1730922677892,-1043.112019,0.00030958,7]
[341495658,1730922677903,-1043.112019,0.00030958,7]
[341495659,1730922677913,-151.0,0.00030958,7]
[341495660,1730922677923,-151.0,0.00030958,7]
[341495661,1730922677932,-253.469062,0.00030958,7]
[341495662,1730922677943,-594.868439,0.00030958,7]
[341495663,1730922677953,-594.868439,0.00030958,7]
[341495664,1730922677963,-242.37,0.00030983,2]
[341495665,1730922677975,-5499.01620516,0.00031,2]
[341495666,1730922677984,-500.0,0.00031,2]
[341495667,1730922677994,-165.436283,0.00031,7]
[341495668,1730922678003,-165.436283,0.00031,7]
[341495669,1730922678012,-500.0,0.00031,30]
[341495670,1730922678021,-500.0,0.00031,30]
[341495671,1730922678031,-500.0,0.00031,30]
[341495672,1730922678040,-500.0,0.00031,30]
[341495673,1730922678049,-500.0,0.00031,30]
[341495674,1730922678058,-530.56192374,0.00031,30]
[341495675,1730922678068,-500.0,0.00031,30]
[341495676,1730922678077,-500.0,0.00031,30]
[341495677,1730922678087,-504.44748779,0.00031,30]
[341495678,1730922678096,-503.0098627,0.00031,30]
[341495679,1730922678105,-500.0,0.00031,30]
[341495680,1730922678114,-500.0,0.00031,30]
[341495681,1730922678124,-500.0,0.00031,30]
[341495682,1730922678133,-643.73131658,0.00031,30]
[341495683,1730922678142,-500.0,0.00031,30]
[341495684,1730922678151,-500.0,0.00031,30]
[341495685,1730922678160,-500.0,0.00031,30]
[341495686,1730922678170,-500.0,0.00031,30]
[341495687,1730922678179,-500.0,0.00031,30]
[341495688,1730922678188,-500.0,0.00031,30]
[341495689,1730922678197,-779.74769477,0.00031,30]
[341495690,1730922678206,-193.6755,0.0003103,2]
[341495691,1730922678215,-151.0,0.00031232,7]
[341495692,1730922678225,-151.0,0.00031232,7]
[341495693,1730922678235,-500.0,0.00031232,2]
[341495694,1730922678244,-747.29,0.00031232,2]
[341495695,1730922678254,-500.0,0.00031232,2]
[341495696,1730922678263,-500.0,0.00031232,2]
[341495697,1730922678273,-524.69,0.00031232,2]
[341495698,1730922678283,-500.0,0.00031232,2]
[341495699,1730922678292,-500.0,0.00031232,2]
[341495700,1730922678302,-500.0,0.00031232,2]
[341495701,1730922678311,-1051.01,0.00031232,2]
[341495702,1730922678320,-500.0,0.00031232,2]
[341495703,1730922678330,-851.78,0.00031232,2]
[341495704,1730922678339,-500.0,0.00031232,2]
[341495705,1730922678349,-500.0,0.00031232,2]
[341495706,1730922678358,-500.0,0.00031232,2]
[341495707,1730922678368,-572.0,0.00031232,2]
[341495708,1730922678378,-500.0,0.00031232,2]
[341495709,1730922678390,-500.0,0.00031232,2]
[341495710,1730922678399,-500.0,0.00031232,2]
[341495711,1730922678408,-659.87,0.00031232,2]
[341495712,1730922678418,-1047.2,0.00031232,2]
[341495713,1730922678428,-500.0,0.00031232,2]
[341495714,1730922678438,-500.0,0.00031232,2]
[341495715,1730922678447,-933.13,0.00031232,2]
[341495716,1730922678458,-502.97,0.00031232,2]
[341495717,1730922678469,-500.0,0.00031232,2]
[341495718,1730922678479,-500.0,0.00031232,2]
[341495719,1730922678489,-500.0,0.00031232,2]
[341495720,1730922678499,-663.55,0.00031232,2]
[341495721,1730922678509,-500.0,0.00031232,2]
[341495722,1730922678519,-500.0,0.00031232,2]
[341495723,1730922678528,-718.46,0.00031232,2]
[341495724,1730922678538,-500.0,0.00031232,2]
[341495725,1730922678548,-549.51,0.00031232,2]
[341495726,1730922678557,-151.0,0.00031232,7]
[341495727,1730922678567,-500.0,0.00031232,2]
[341495728,1730922678577,-151.0,0.00031232,7]
[341495729,1730922678586,-177.41227567,0.00031232,2]
[341495730,1730922678595,-620.75,0.00031232,2]
[341495731,1730922678606,-500.0,0.00031232,2]
[341495732,1730922678615,-721.78,0.00031232,2]
[341495733,1730922678625,-500.0,0.00031232,2]
[341495734,1730922678635,-578.58,0.00031232,2]
[341495735,1730922678645,-1169.27,0.00031232,2]
[341495736,1730922678930,-500.0,0.00031232,2]
[341495737,1730922678941,-626.9,0.00031232,2]
[341495738,1730922678951,-500.0,0.00031232,2]
[341495739,1730922678961,-528.97,0.00031232,2]
[341495740,1730922678970,-225.657532,0.00031232,7]
[341495741,1730922678982,-500.0,0.00031232,2]
[341495742,1730922678991,-588.31,0.00031232,2]
[341495743,1730922679001,-159.97379818,0.00031232,2]
[341495744,1730922679011,-992.82,0.00031232,2]
[341495745,1730922679021,-500.0,0.00031232,2]
[341495746,1730922679031,-500.0,0.00031232,2]
[341495747,1730922679042,-949.12,0.00031232,2]
[341495748,1730922679052,-200.446961,0.00031232,7]
[341495749,1730922679063,-824.345403,0.00031232,7]
[341495750,1730922679073,-200.446968,0.00031232,7]
[341495751,1730922679083,-824.345411,0.00031232,7]
[341495752,1730922679094,-628.45,0.00031232,2]
[341495753,1730922679104,-892.79,0.00031232,2]
[341495754,1730922679115,-574.4,0.00031232,2]
[341495755,1730922679126,-242.51760401,0.00031232,2]
[341495756,1730922679136,-641.4,0.00031232,2]
[341495757,1730922679147,-1259.56,0.00031232,2]
[341495758,1730922679157,-500.0,0.00031232,2]
[341495759,1730922679167,-500.0,0.00031232,2]
[341495760,1730922679177,-941.09,0.00031232,2]
[341495761,1730922679186,-859.1,0.00031232,2]
[341495762,1730922679197,-500.0,0.00031232,2]
[341495763,1730922679208,-1523.21,0.00031232,2]
[341495764,1730922679218,-616.69,0.00031232,2]
[341495765,1730922679229,-536.1,0.00031232,2]
[341495766,1730922679239,-530.09,0.00031232,2]
[341495767,1730922679249,-1724.32,0.00031232,2]
[341495768,1730922679259,-791.56,0.00031232,2]
[341495769,1730922679268,-1306.48,0.00031232,2]
[341495770,1730922679278,-500.0,0.00031232,2]
[341495771,1730922679288,-989.59,0.00031232,2]
[341495772,1730922679298,-508.25,0.00031232,2]
[341495773,1730922679308,-500.0,0.00031232,2]
[341495774,1730922679318,-2159.33,0.00031232,2]
[341495775,1730922679328,-1683.35,0.00031232,2]
[341495776,1730922679338,-536.59,0.00031232,2]
[341495777,1730922679348,-1052.72,0.00031232,2]
[341495778,1730922679358,-224.3834562,0.00031232,2]
[341495779,1730922679368,-500.0,0.00031232,2]
[341495780,1730922679378,-500.0,0.00031232,2]
[341495781,1730922679389,-1358.49,0.00031232,2]
[341495782,1730922679400,-500.0,0.00031232,2]
[341495783,1730922679409,-500.0,0.00031232,2]
[341495784,1730922679419,-1719.08,0.00031232,2]
[341495785,1730922679429,-500.0,0.00031232,2]
[341495786,1730922679439,-500.0,0.00031232,2]
[341495787,1730922679449,-1081.12,0.00031232,2]
[341495788,1730922679459,-554.88,0.00031232,2]
[341495789,1730922679470,-608.63,0.00031232,2]
[341495790,1730922679483,-500.0,0.00031232,2]
[341495791,1730922679494,-655.47,0.00031232,2]
[341495792,1730922679505,-576.36,0.00031232,2]
[341495793,1730922679516,-641.95,0.00031232,2]
[341495794,1730922679526,-2127.75,0.00031232,2]
[341495795,1730922679536,-978.4,0.00031232,2]
[341495796,1730922679546,-565.93,0.00031232,2]
[341495797,1730922679556,-1670.33,0.00031232,2]
[341495798,1730922679566,-665.68,0.00031232,2]
[341495799,1730922679576,-500.0,0.00031232,2]
[341495800,1730922679587,-1219.79,0.00031232,2]
[341495801,1730922679597,-1209.34,0.00031232,2]
[341495802,1730922679607,-1277.02,0.00031232,2]
[341495803,1730922679618,-646.01362109,0.00031232,2]
[341495804,1730922679628,-538.64,0.00031232,2]
[341495805,1730922679639,-500.0,0.00031232,2]
[341495806,1730922679649,-1000.12,0.00031232,2]
[341495807,1730922679659,-500.0,0.00031232,2]
[341495808,1730922679668,-802.32,0.00031232,2]
[341495809,1730922679678,-1976.19,0.00031232,2]
[341495810,1730922679688,-569.46,0.00031232,2]
[341495811,1730922679698,-894.15,0.00031232,2]
[341495812,1730922679708,-500.0,0.00031232,2]
[341495813,1730922679717,-824.163633,0.00031232,7]
[341495814,1730922679729,-824.163627,0.00031232,7]
[341495815,1730922679739,-151.0,0.00031232,7]
[341495816,1730922679749,-968.27213108,0.00031242,2]
[341495817,1730922679759,-1500.0,0.00031247,2]
[341495818,1730922679769,-11296.61990667,0.00031326,15]
[341495819,1730922679779,-318.03721773,0.00031327,2]
[341495820,1730922679788,-614.1219092,0.00031379,2]
[341495821,1730922679798,-160.71891,0.00031392,2]
[341495822,1730922679809,-1364.39,0.000314,7]
[341495823,1730922679818,-2159.89723387,0.00031405,2]
[341495824,1730922679828,-2159.89723387,0.00031405,2]
[341495825,1730922679837,-14043.89397329,0.0003143,4]
[341495826,1730922679847,-1043.112019,0.0003143,7]
[341495827,1730922679857,-1043.112019,0.0003143,7]
[341495828,1730922679866,-151.42395311,0.0003143,6]
[341495829,1730922679876,-1524.35,0.00031464,2]
[341495830,1730922679886,-151.0,0.00031506,7]
[341495831,1730922679895,-500.0,0.00031506,2]
[341495832,1730922679905,-747.29,0.00031506,2]
[341495833,1730922679915,-165.436283,0.00031506,7]
[341495834,1730922679924,-500.0,0.00031506,2]
[341495835,1730922679934,-165.436283,0.00031506,7]
[341495836,1730922679944,-500.0,0.00031506,2]
[341495837,1730922679953,-524.69,0.00031506,2]
[341495838,1730922679963,-500.0,0.00031506,2]
[341495839,1730922679972,-572.89190681,0.00031506,2]
[341495840,1730922679984,-500.0,0.00031506,2]
[341495841,1730922679993,-1051.01,0.00031506,2]
[341495842,1730922680002,-500.0,0.00031506,2]
[341495843,1730922680011,-851.78,0.00031506,2]
[341495844,1730922680021,-500.0,0.00031506,2]
[341495845,1730922680030,-500.0,0.00031506,2]
[341495846,1730922680040,-490.31107908,0.00031506,2]
[341495847,1730922680049,-572.0,0.00031506,2]
[341495848,1730922680059,-500.0,0.00031506,2]
[341495849,1730922680068,-500.0,0.00031506,2]
[341495850,1730922680077,-626.27710616,0.00031506,2]
[341495851,1730922680086,-659.87,0.00031506,2]
[341495852,1730922680096,-1047.2,0.00031506,2]
[341495853,1730922680105,-500.0,0.00031506,2]
[341495854,1730922680114,-500.0,0.00031506,2]
[341495855,1730922680123,-933.13,0.00031506,2]
[341495856,1730922680133,-502.97,0.00031506,2]
[341495857,1730922680143,-500.0,0.00031506,2]
[341495858,1730922680153,-500.0,0.00031506,2]
[341495859,1730922680162,-500.0,0.00031506,2]
[341495860,1730922680173,-663.55,0.00031506,2]
[341495861,1730922680182,-425.98393246,0.00031506,2]
[341495862,1730922680192,-597.83636501,0.00031506,2]
[341495863,1730922680202,-718.46,0.00031506,2]
[341495864,1730922680211,-500.0,0.00031506,2]
[341495865,1730922680222,-549.51,0.00031506,2]
[341495866,1730922680233,-500.0,0.00031506,2]
[341495867,1730922680242,-620.75,0.00031506,2]
[341495868,1730922680252,-500.0,0.00031506,2]
[341495869,1730922680261,-721.78,0.00031506,2]
[341495870,1730922680270,-500.0,0.00031506,2]
[341495871,1730922680280,-578.58,0.00031506,2]
[341495872,1730922680293,-1169.27,0.00031506,2]
[341495873,1730922680302,-500.0,0.00031506,2]
[341495874,1730922680314,-626.9,0.00031506,2]
[341495875,1730922680325,-500.0,0.00031506,2]
[341495876,1730922680336,-528.97,0.00031506,2]
[341495877,1730922680345,-500.0,0.00031506,2]
[341495878,1730922680356,-588.31,0.00031506,2]
[341495879,1730922680368,-992.82,0.00031506,2]
[341495880,1730922680378,-500.0,0.00031506,2]
[341495881,1730922680391,-500.0,0.00031506,2]
[341495882,1730922680402,-949.12,0.00031506,2]
[341495883,1730922680412,-628.45,0.00031506,2]
[341495884,1730922680421,-892.79,0.00031506,2]
[341495885,1730922680434,-574.4,0.00031506,2]
[341495886,1730922680444,-641.4,0.00031506,2]
[341495887,1730922680453,-1259.56,0.00031506,2]
[341495888,1730922680465,-500.0,0.00031506,2]
[341495889,1730922680478,-329.80697599,0.00031506,2]
[341495890,1730922680488,-941.09,0.00031506,2]
[341495891,1730922680497,-859.1,0.00031506,2]
[341495892,1730922680506,-500.0,0.00031506,2]
[341495893,1730922680516,-1523.21,0.00031506,2]
[341495894,1730922680526,-616.69,0.00031506,2]
[341495895,1730922680535,-536.1,0.00031506,2]
[341495896,1730922680544,-530.09,0.00031506,2]
[341495897,1730922680554,-1724.32,0.00031506,2]
[341495898,1730922680564,-791.56,0.00031506,2]
[341495899,1730922680573,-1306.48,0.00031506,2]
[341495900,1730922680583,-500.0,0.00031506,2]
[341495901,1730922680592,-989.59,0.00031506,2]
[341495902,1730922680602,-508.25,0.00031506,2]
[341495903,1730922680612,-500.0,0.00031506,2]
[341495904,1730922680622,-2159.33,0.00031506,2]
[341495905,1730922680631,-1683.35,0.00031506,2]
[341495906,1730922680641,-536.59,0.00031506,2]
[341495907,1730922680651,-1052.72,0.00031506,2]
[341495908,1730922680660,-406.89211318,0.00031506,2]
[341495909,1730922680670,-500.0,0.00031506,2]
[341495910,1730922680679,-1358.49,0.00031506,2]
[341495911,1730922680689,-500.0,0.00031506,2]
[341495912,1730922680698,-500.0,0.00031506,2]
[341495913,1730922680707,-1719.08,0.00031506,2]
[341495914,1730922680717,-500.0,0.00031506,2]
[341495915,1730922680728,-236.01823899,0.00031506,2]
[341495916,1730922680738,-1081.12,0.00031506,2]
[341495917,1730922680747,-554.88,0.00031506,2]
[341495918,1730922680757,-608.63,0.00031506,2]
[341495919,1730922680767,-417.25787914,0.00031506,2]
[341495920,1730922680777,-655.47,0.00031506,2]
[341495921,1730922680786,-576.36,0.00031506,2]
[341495922,1730922680796,-641.95,0.00031506,2]
[341495923,1730922680806,-2127.75,0.00031506,2]
[341495924,1730922680816,-978.4,0.00031506,2]
[341495925,1730922680825,-565.93,0.00031506,2]
[341495926,1730922680834,-1670.33,0.00031506,2]
[341495927,1730922680844,-665.68,0.00031506,2]
[341495928,1730922680854,-500.0,0.00031506,2]
[341495929,1730922680863,-1219.79,0.00031506,2]
[341495930,1730922680873,-1209.34,0.00031506,2]
[341495931,1730922680883,-1277.02,0.00031506,2]
[341495932,1730922680892,-538.64,0.00031506,2]
[341495933,1730922680902,-500.0,0.00031506,2]
[341495934,1730922680912,-1000.12,0.00031506,2]
[341495935,1730922680921,-500.0,0.00031506,2]
[341495936,1730922680931,-802.32,0.00031506,2]
[341495937,1730922680940,-1976.19,0.00031506,2]
[341495938,1730922680950,-569.46,0.00031506,2]
[341495939,1730922680960,-500.0,0.00031506,2]
[341495940,1730922680969,-894.15,0.00031506,2]
[341495941,1730922680978,-226.012683,0.00031506,7]
[341495942,1730922680988,-641.332644,0.00031506,7]
[341495943,1730922680998,-641.332637,0.00031506,7]
[341495944,1730922681007,-151.0,0.00031506,7]
[341495945,1730922681017,-151.0,0.00031506,7]
[341495946,1730922681026,-594.868439,0.00031506,7]
[341495947,1730922681036,-594.868439,0.00031506,7]
[341495948,1730922681045,-442.39089251,0.0003152,2]
[341495949,1730922681054,-398457.9062354,0.0003153,7]
[341495950,1730922681065,-165.436283,0.0003153,7]
[341495951,1730922681075,-165.436275,0.0003153,7]
[341495952,1730922681084,-1043.112019,0.0003153,7]
[341495953,1730922681094,-1043.112011,0.0003153,7]
[341495954,1730922681107,-151.0,0.0003153,7]
[341495955,1730922681117,-151.0,0.0003153,7]
[341495956,1730922681126,-594.868439,0.0003153,7]
[341495957,1730922681136,-594.868439,0.0003153,7]
[341495958,1730922681146,-26057.677558,0.000316,2]
[341495959,1730922681155,-1955.71,0.000316,7]
[341495960,1730922681165,-1000.0,0.000316,2]
[341495961,1730922681175,-1000.0,0.000316,2]
[341495962,1730922681186,-500.0,0.00031621,2]
[341495963,1730922681196,-500.0,0.00031621,2]
[341495964,1730922681206,-500.0,0.00031621,2]
[341495965,1730922681215,-500.0,0.00031621,2]
[341495966,1730922681225,-500.0,0.00031621,2]
[341495967,1730922681235,-421.4016,0.00031621,2]
[341495968,1730922681244,-1000.0,0.00031621,2]
[341495969,1730922681254,-1000.0,0.00031621,2]
[341495970,1730922681264,-1000.0,0.00031621,2]
[341495971,1730922681275,-1000.0,0.00031621,2]
[341495972,1730922681285,-1000.0,0.00031621,2]
[341495973,1730922681295,-1000.0,0.00031621,2]
[341495974,1730922681305,-1000.0,0.00031621,2]
[341495975,1730922681316,-1000.0,0.00031621,2]
[341495976,1730922681326,-1000.0,0.00031621,2]
[341495977,1730922681336,-1000.0,0.00031621,2]
[341495978,1730922681348,-1000.0,0.00031621,2]
[341495979,1730922681365,-1000.0,0.00031621,2]
[341495980,1730922681375,-1000.0,0.00031621,2]
[341495981,1730922681385,-1000.0,0.00031621,2]
[341495982,1730922681395,-1000.0,0.00031621,2]
[341495983,1730922681406,-1000.0,0.00031621,2]
[341495984,1730922681416,-1000.0,0.00031621,2]
[341495985,1730922681425,-1000.0,0.00031621,2]
[341495986,1730922681435,-1000.0,0.00031621,2]
[341495988,1730922681445,-1000.0,0.00031621,2]
[341495989,1730922681454,-1000.0,0.00031621,2]
[341495990,1730922681464,-1000.0,0.00031621,2]
[341495991,1730922681473,-1000.0,0.00031621,2]
[341495992,1730922681485,-1000.0,0.00031621,2]
[341495993,1730922681495,-1000.0,0.00031621,2]
[341495994,1730922681504,-1000.0,0.00031621,2]
[341495995,1730922681513,-1000.0,0.00031621,2]
[341495996,1730922681523,-1000.0,0.00031621,2]
[341495997,1730922681532,-1000.0,0.00031621,2]
[341495998,1730922681542,-1000.0,0.00031621,2]
[341495999,1730922681551,-785.7412,0.00031621,2]
[341496000,1730922681561,-166.95,0.00031624,2]
[341496001,1730922681570,-800.0,0.000317,11]
[341496002,1730922681580,-359.65,0.0003175,120]
[341496003,1730922681590,-150.01,0.00031779,2]
[341496004,1730922681599,-990.29291269,0.00031779,2]
[341496005,1730922681609,-151.0,0.0003178,7]
[341496006,1730922681618,-151.0,0.0003178,7]
[341496007,1730922681628,-151.0,0.0003178,7]
[341496008,1730922681637,-151.0,0.0003178,7]
[341496009,1730922681646,-210.591697,0.0003178,7]
[341496010,1730922681656,-1000.0,0.0003178,2]
[341496011,1730922681665,-1000.0,0.0003178,2]
[341496012,1730922681674,-1000.0,0.0003178,2]
[341496013,1730922681683,-1000.0,0.0003178,2]
[341496014,1730922681693,-1000.0,0.0003178,2]
[341496015,1730922681702,-1000.0,0.0003178,2]
[341496016,1730922681711,-1000.0,0.0003178,2]
[341496017,1730922681720,-1000.0,0.0003178,2]
[341496018,1730922681730,-1000.0,0.0003178,2]
[341496019,1730922681739,-1000.0,0.0003178,2]
[341496020,1730922681749,-1000.0,0.0003178,2]
[341496021,1730922681758,-1000.0,0.0003178,2]